fUST/lending_fUST_20250707
["ID","MTS","AMOUNT","RATE_DAILY","PERIOD"]
[370100825,1751880650344,-76028.12985717,0.0002465,2]
[370100826,1751880650354,-501.10567785,0.0002465,2]
[370100827,1751880650363,-150.0,0.00024658,2]
[370100828,1751880650372,-184.05144801,0.00024685,2]
[370100829,1751880650382,-35308.11,0.000247,7]
[370100830,1751880650392,-78880.64,0.000247,2]
[370100831,1751880650402,-2184.33,0.000247,7]
[370100832,1751880650411,-160.0,0.000247,7]
[370100833,1751880650422,-12584.46609586,0.000247,7]
[370100834,1751880650431,-160.0,0.000247,7]
[370100835,1751880650440,-230.48668418,0.000247,7]
[370100836,1751880650449,-159.4922776,0.00024708,2]
[370100837,1751880650459,-159.4922776,0.00024708,2]
[370100838,1751880650469,-576.0368563,0.00024708,2]
[370100839,1751880650479,-159.4922776,0.00024708,2]
[370100840,1751880650488,-576.0368563,0.00024708,2]
[370100841,1751880650497,-159.4922776,0.00024708,2]
[370100842,1751880650506,-576.0368563,0.00024708,2]
[370100843,1751880650515,-159.4922776,0.00024708,2]
[370100844,1751880650525,-576.0368563,0.00024708,2]
[370100845,1751880650534,-306.0,0.00024709,2]
[370100846,1751880650544,-167.61624181,0.00024712,2]
[370100847,1751880650553,-167.6162418,0.00024712,2]
[370100848,1751880650563,-1853.0,0.00024723,4]
[370100849,1751880650572,-901.52706285,0.00024738,2]
[370100850,1751880650583,-151.0,0.00024747,7]
[370100851,1751880650592,-168.0,0.00024758,2]
[370100852,1751880650601,-500.0,0.00024773,2]
[370100853,1751880650610,-600.0,0.00024773,2]
[370100854,1751880650620,-501.8141145,0.00024773,2]
[370100855,1751880650630,-500.0,0.00024773,2]
[370100856,1751880650639,-500.0,0.00024773,2]
[370100857,1751880650649,-500.0,0.00024773,2]
[370100858,1751880650658,-500.0,0.00024773,2]
[370100859,1751880650667,-500.0,0.00024773,2]
[370100860,1751880650677,-500.0,0.00024773,2]
[370100861,1751880650686,-500.0,0.00024773,2]
[370100862,1751880650695,-500.0,0.00024773,2]
[370100863,1751880650705,-500.0,0.00024773,2]
[370100864,1751880650714,-500.0,0.00024773,2]
[370100865,1751880650723,-500.0,0.00024773,2]
[370100866,1751880650733,-501.01682281,0.00024773,2]
[370100867,1751880650741,-500.0,0.00024773,2]
[370100868,1751880650751,-500.0,0.00024773,2]
[370100869,1751880650760,-500.0,0.00024773,2]
[370100870,1751880650770,-500.0,0.00024773,2]
[370100871,1751880650779,-160.02988921,0.00024773,2]
[370100872,1751880650789,-248.71531821,0.00024777,2]
[370100873,1751880650798,-168.0,0.00024779,2]
[370100874,1751880650807,-169.4987685,0.000248,2]
[370100875,1751880650817,-1827.94817961,0.000248,2]
[370100876,1751880650826,-125639.28311614,0.000248,7]
[370100877,1751880650836,-367.4196719,0.0002481,2]
[370100878,1751880650845,-1162.79290855,0.00024817,2]
[370100879,1751880650855,-184.05144801,0.00024822,2]
[370100880,1751880650865,-1853.0,0.00024823,6]
[370100881,1751880650875,-1827.94817955,0.00024829,2]
[370100882,1751880650885,-228.0,0.00024842,2]
[370100883,1751880650896,-228.0,0.00024847,2]
[370100884,1751880650905,-1827.94817955,0.00024858,2]
[370100885,1751880650914,-150.0,0.00024873,2]
[370100886,1751880650924,-1827.94817955,0.00024888,2]
[370100887,1751880650934,-322384.84446582,0.00024899,4]
[370100888,1751880651057,-16833.04663418,0.00024899,4]
[370100889,1751880651067,-93167.33891422,0.000249,2]
[370100890,1751880651622,-571.05,0.00021786,2]
[370100891,1751880651631,-571.05,0.0002206,2]
[370100892,1751880651641,-571.05,0.00022334,2]
[370100893,1751880651651,-66.0609304,0.00022608,2]
[370100894,1751880651662,-504.9890696,0.00022608,2]
[370100895,1751880651671,-571.19,0.00022882,2]
[370100896,1751880651680,-2803.2573835,0.0002398,10]
[370100897,1751880651691,-462.11145441,0.0002398,10]
[370100898,1751880651702,-5824.34116209,0.0002398,10]
[370100899,1751880651711,-94328.80945893,0.000249,2]
[370100900,1751880651741,-24567.28530194,0.000249,2]
[370100901,1751880651846,-1017.9935926,0.000249,2]
[370100902,1751880651857,-3664.749999,0.000249,2]
[370100903,1751880651868,-1318.399988,0.000249,2]
[370100904,1751880651879,-481.81089042,0.000249,2]
[370100905,1751880651890,-72340.96707327,0.000249,2]
[370100906,1751880652045,-2010.50207394,0.000249,2]
[370100907,1751880652057,-22685.40186138,0.000249,2]
[370100908,1751880652069,-113940.246812,0.000249,2]
[370100909,1751880652081,-355.33534456,0.000249,2]
[370100910,1751880652607,-201.85100004,0.000179,2]
[370100911,1751880652616,-152.81632364,0.00018248,2]
[370100912,1751880652628,-49.03467637,0.00018248,2]
[370100913,1751880652637,-201.85100001,0.00018596,2]
[370100914,1751880652647,-201.85100001,0.00018943,2]
[370100915,1751880652656,-201.85100001,0.00019291,2]
[370100916,1751880652666,-201.85100001,0.00019639,2]
[370100917,1751880652675,-201.85100001,0.00019987,2]
[370100918,1751880652685,-201.85100001,0.00020335,3]
[370100919,1751880652695,-201.85100001,0.00020683,3]
[370100920,1751880652706,-169.0231323,0.0002103,4]
[370100921,1751880652718,-32.82786771,0.0002103,4]
[370100922,1751880652727,-201.85100001,0.00021378,5]
[370100923,1751880652736,-201.85100001,0.00021726,5]
[370100924,1751880652745,-201.85100001,0.00022074,6]
[370100925,1751880652754,-201.85100001,0.00022422,7]
[370100926,1751880652763,-201.85100001,0.0002277,7]
[370100927,1751880652773,-201.85100001,0.00023117,8]
[370100928,1751880652782,-201.85100001,0.00023465,9]
[370100929,1751880652792,-366.6942869,0.00023562,2]
[370100930,1751880652802,-201.85100001,0.00023813,9]
[370100931,1751880652814,-201.85100001,0.00024161,10]
[370100932,1751880652826,-633.0911884,0.000249,2]
[370100933,1751880711194,14932.44639557,0.0001648,2]
[370100934,1751880765618,688.79630997,0.00016472,2]
[370100935,1751880848838,1277.49973653,0.000165,2]
[370100936,1751880848862,3722.50026347,0.000165,2]
[370100937,1751880865346,5000.0,0.000165,2]
[370100938,1751880882676,5000.0,0.000165,2]
[370100939,1751880899679,5000.0,0.000165,2]
[370100940,1751880902134,200.536624,0.00016082,2]
[370100941,1751880902594,328.75659357,0.00016082,2]
[370100942,1751880915943,748.20651896,0.000165,2]
[370100943,1751880915969,4251.79348104,0.000165,2]
[370100944,1751880932181,5000.0,0.000165,2]
[370100945,1751880948482,5000.0,0.000165,2]
[370100946,1751880966101,5000.0,0.000165,2]
[370100947,1751880966395,180.50754308,0.00016481,2]
[370100948,1751880982407,567.69897588,0.000165,2]
[370100949,1751880982430,4432.30102412,0.000165,2]
[370100950,1751880999116,5000.0,0.000165,2]
[370100951,1751881003348,164.904123,0.00013699,2]
[370100952,1751881015157,5000.0,0.000165,2]
[370100953,1751881091805,180.50754308,0.0001648,2]
[370100954,1751881205861,217.30761854,0.00016082,2]
[370100955,1751881532126,-501.0,0.00016577,2]
[370100956,1751881532147,-489.0,0.00016577,2]
[370100957,1751881532168,-201.42281605,0.00016577,2]
[370100958,1751881536102,-98.57718395,0.00016577,2]
[370100959,1751881536124,-153.0,0.00016577,2]
[370100960,1751881536147,-417.13708206,0.00016578,2]
[370100961,1751881536169,-554.64,0.00016578,2]
[370100962,1751881536190,-460.0,0.00016578,2]
[370100963,1751881536211,-365.46710189,0.00016578,2]
[370100964,1751881536232,-460.0,0.00016578,2]
[370100965,1751881536254,-340.93540318,0.00016578,2]
[370100966,1751881601095,-153.18887539,0.00016577,2]
[370100967,1751881643129,-72.40079239,0.00016577,2]
[370100968,1751881643151,-291.99595744,0.00016577,2]
[370100969,1751881643173,-83.4965418,0.00016577,2]
[370100989,1751881838613,-405.85748006,0.00016575,2]
[370100990,1751881838624,-500.0,0.00016575,2]
[370100991,1751881838636,-245.18572526,0.00016575,2]
[370100993,1751881838647,-500.0,0.00016575,2]
[370100995,1751881838658,-500.0,0.00016575,2]
[370100997,1751881838668,-500.0,0.00016575,2]
[370100999,1751881838679,-500.0,0.00016575,2]
[370101000,1751881838690,-500.0,0.00016575,2]
[370101001,1751881838700,-158.28002317,0.00016575,2]
[370101002,1751881838718,-341.71997683,0.00016575,2]
[370101004,1751881838728,-536.41800026,0.00016575,2]
[370101006,1751881838743,-500.0,0.00016575,2]
[370101009,1751881838759,-427.5933116,0.00016575,2]
[370101010,1751881838770,-460.0,0.00016577,2]
[370101011,1751881838782,-1324.75,0.00016577,2]
[370101012,1751881838793,-460.0,0.00016577,2]
[370101013,1751881838804,-460.0,0.00016577,2]
[370101014,1751881838815,-460.0,0.00016577,2]
[370101015,1751881838826,-474.7,0.00016577,2]
[370101016,1751881838837,-460.0,0.00016577,2]
[370101017,1751881838848,-180.98891101,0.00016578,2]
[370101018,1751881838859,-460.0,0.00016578,2]
[370101019,1751881838870,-500.0,0.00016578,2]
[370101020,1751881838881,-460.0,0.00016578,2]
[370101021,1751881838893,-460.0,0.00016578,2]
[370101022,1751881838906,-460.0,0.00016578,2]
[370101023,1751881838917,-460.0,0.00016578,2]
[370101024,1751881838929,-310.03871625,0.00016578,2]
[370101025,1751881838939,-460.0,0.00016578,2]
[370101026,1751881838950,-460.0,0.00016578,2]
[370101027,1751881838961,-460.0,0.00016578,2]
[370101028,1751881838973,-460.0,0.00016578,2]
[370101029,1751881838984,-460.0,0.00016578,2]
[370101030,1751881838995,-460.0,0.00016578,2]
[370101031,1751881839008,-460.0,0.00016578,2]
[370101032,1751881839018,-460.0,0.00016578,2]
[370101033,1751881839029,-460.0,0.00016578,2]
[370101034,1751881839039,-460.0,0.00016578,2]
[370101035,1751881839050,-460.0,0.00016578,2]
[370101036,1751881839061,-460.0,0.00016578,2]
[370101037,1751881839072,-460.0,0.00016578,2]
[370101038,1751881839082,-372.21438112,0.00016578,2]
[370101039,1751881839093,-500.0,0.00016578,2]
[370101040,1751881839107,-460.0,0.00016578,2]
[370101041,1751881839118,-460.0,0.00016578,2]
[370101042,1751881839129,-460.0,0.00016578,2]
[370101043,1751881839139,-460.0,0.00016578,2]
[370101045,1751881839150,-460.0,0.00016578,2]
[370101047,1751881839161,-460.0,0.00016578,2]
[370101050,1751881839172,-460.0,0.00016578,2]
[370101052,1751881839183,-460.0,0.00016578,2]
[370101054,1751881839194,-460.0,0.00016578,2]
[370101056,1751881839205,-460.0,0.00016578,2]
[370101058,1751881839216,-580.35,0.00016578,2]
[370101060,1751881839226,-460.0,0.00016578,2]
[370101062,1751881839237,-460.0,0.00016578,2]
[370101064,1751881839249,-460.0,0.00016578,2]
[370101065,1751881839260,-460.0,0.00016578,2]
[370101067,1751881839271,-460.0,0.00016578,2]
[370101069,1751881839281,-460.0,0.00016578,2]
[370101071,1751881839291,-460.0,0.00016578,2]
[370101073,1751881839301,-460.0,0.00016578,2]
[370101075,1751881839311,-460.0,0.00016578,2]
[370101076,1751881839321,-460.0,0.00016578,2]
[370101077,1751881839331,-460.0,0.00016578,2]
[370101078,1751881839341,-460.0,0.00016578,2]
[370101079,1751881839352,-460.0,0.00016578,2]
[370101080,1751881839362,-460.0,0.00016578,2]
[370101081,1751881839372,-460.0,0.00016578,2]
[370101082,1751881839383,-214.67095831,0.00016578,2]
[370101083,1751881839394,-460.0,0.00016578,2]
[370101084,1751881839405,-460.0,0.00016578,2]
[370101085,1751881839416,-460.0,0.00016578,2]
[370101086,1751881839427,-460.0,0.00016578,2]
[370101087,1751881839439,-460.0,0.00016578,2]
[370101089,1751881839450,-460.0,0.00016578,2]
[370101090,1751881839460,-460.0,0.00016578,2]
[370101091,1751881839475,-460.0,0.00016578,2]
[370101092,1751881839487,-503.29351089,0.00016578,2]
[370101093,1751881839497,-460.0,0.00016578,2]
[370101094,1751881839510,-460.0,0.00016578,2]
[370101095,1751881839521,-460.0,0.00016578,2]
[370101096,1751881839532,-549.37564314,0.00016578,2]
[370101097,1751881839543,-460.0,0.00016578,2]
[370101098,1751881839554,-460.0,0.00016578,2]
[370101099,1751881839565,-460.0,0.00016578,2]
[370101100,1751881839577,-227.05,0.00016578,2]
[370101101,1751881839588,-460.0,0.00016578,2]
[370101102,1751881839599,-460.0,0.00016578,2]
[370101103,1751881839610,-460.0,0.00016578,2]
[370101104,1751881839620,-460.0,0.00016578,2]
[370101105,1751881839630,-460.0,0.00016578,2]
[370101106,1751881839652,-546.10924468,0.00016578,2]
[370101107,1751881839665,-460.0,0.00016578,2]
[370101108,1751881839677,-460.0,0.00016578,2]
[370101109,1751881839688,-460.0,0.00016578,2]
[370101110,1751881839699,-460.0,0.00016578,2]
[370101111,1751881839710,-460.0,0.00016578,2]
[370101112,1751881839720,-460.0,0.00016578,2]
[370101113,1751881839734,-3977.23302406,0.00016578,2]
[370101114,1751881839750,-423.15,0.00016579,2]
[370101115,1751881839761,-460.0,0.00016579,2]
[370101116,1751881839773,-460.0,0.00016579,2]
[370101117,1751881839785,-460.0,0.00016579,2]
[370101118,1751881839798,-460.0,0.00016579,2]
[370101119,1751881839809,-460.0,0.00016579,2]
[370101120,1751881839823,-460.0,0.00016579,2]
[370101121,1751881839835,-460.0,0.00016579,2]
[370101122,1751881839845,-460.0,0.00016579,2]
[370101123,1751881839857,-460.0,0.00016579,2]
[370101124,1751881839872,-460.0,0.00016579,2]
[370101125,1751881839884,-309.72760043,0.00016579,2]
[370101126,1751881839896,-460.0,0.00016579,2]
[370101127,1751881839907,-460.0,0.00016579,2]
[370101128,1751881839920,-460.0,0.00016579,2]
[370101129,1751881839932,-423.95084653,0.00016579,2]
[370101130,1751881839943,-460.0,0.00016579,2]
[370101131,1751881839954,-460.0,0.00016579,2]
[370101132,1751881839966,-227.27,0.00016579,2]
[370101133,1751881839978,-460.0,0.00016579,2]
[370101134,1751881839990,-460.0,0.00016579,2]
[370101135,1751881840001,-460.0,0.00016579,2]
[370101136,1751881840013,-460.0,0.00016579,2]
[370101137,1751881840025,-460.0,0.00016579,2]
[370101138,1751881840035,-460.0,0.00016579,2]
[370101139,1751881840046,-460.0,0.00016579,2]
[370101140,1751881840057,-460.0,0.00016579,2]
[370101141,1751881840067,-462.82276082,0.00016579,2]
[370101143,1751881840078,-460.0,0.00016579,2]
[370101145,1751881840088,-460.0,0.00016579,2]
[370101146,1751881840100,-460.0,0.00016579,2]
[370101147,1751881840111,-460.0,0.00016579,2]
[370101148,1751881840121,-510.07695423,0.00016579,2]
[370101149,1751881840132,-460.0,0.00016579,2]
[370101150,1751881840143,-460.0,0.00016579,2]
[370101151,1751881840154,-460.0,0.00016579,2]
[370101152,1751881840164,-460.0,0.00016579,2]
[370101153,1751881840175,-460.0,0.00016579,2]
[370101154,1751881840186,-460.0,0.00016579,2]
[370101155,1751881840196,-460.0,0.00016579,2]
[370101156,1751881840207,-460.0,0.0001658,2]
[370101157,1751881840217,-460.0,0.0001658,2]
[370101158,1751881840228,-460.0,0.0001658,2]
[370101159,1751881840239,-460.0,0.0001658,2]
[370101160,1751881840249,-460.0,0.0001658,2]
[370101161,1751881840260,-460.0,0.0001658,2]
[370101162,1751881840270,-196.55083398,0.0001658,2]
[370101163,1751881840281,-460.0,0.0001658,2]
[370101164,1751881840292,-460.0,0.0001658,2]
[370101165,1751881840302,-460.0,0.0001658,2]
[370101166,1751881840313,-460.0,0.0001658,2]
[370101167,1751881840323,-535.96,0.0001658,2]
[370101168,1751881840336,-460.0,0.00016851,2]
[370101169,1751881840346,-1324.75,0.00016851,2]
[370101170,1751881840357,-460.0,0.00016851,2]
[370101171,1751881840367,-460.0,0.00016852,2]
[370101172,1751881840378,-460.0,0.00016852,2]
[370101173,1751881840390,-460.0,0.00016852,2]
[370101174,1751881840400,-460.0,0.00016852,2]
[370101175,1751881840411,-520.99,0.00016852,2]
[370101176,1751881840421,-460.0,0.00016852,2]
[370101177,1751881840432,-460.0,0.00016852,2]
[370101178,1751881840444,-460.0,0.00016852,2]
[370101179,1751881840455,-543.72,0.00016852,2]
[370101180,1751881840465,-460.0,0.00016852,2]
[370101182,1751881840476,-460.0,0.00016852,2]
[370101184,1751881840486,-466.6,0.00016852,2]
[370101185,1751881840496,-460.0,0.00016852,2]
[370101186,1751881840507,-460.0,0.00016852,2]
[370101187,1751881840518,-460.0,0.00016852,2]
[370101188,1751881840529,-460.0,0.00016852,2]
[370101189,1751881840539,-242.9,0.00016852,2]
[370101190,1751881840552,-460.0,0.00016852,2]
[370101191,1751881840563,-460.0,0.00016852,2]
[370101192,1751881840574,-460.0,0.00016852,2]
[370101193,1751881840587,-460.0,0.00016852,2]
[370101194,1751881840598,-460.0,0.00016852,2]
[370101195,1751881840609,-460.0,0.00016852,2]
[370101196,1751881840621,-460.0,0.00016852,2]
[370101197,1751881840632,-490.67,0.00016852,2]
[370101198,1751881840642,-460.0,0.00016852,2]
[370101199,1751881840652,-460.0,0.00016852,2]
[370101200,1751881840663,-460.0,0.00016852,2]
[370101201,1751881840674,-460.0,0.00016852,2]
[370101203,1751881840684,-460.0,0.00016852,2]
[370101204,1751881840695,-460.0,0.00016852,2]
[370101205,1751881840706,-460.0,0.00016852,2]
[370101206,1751881840716,-460.0,0.00016852,2]
[370101207,1751881840727,-460.0,0.00016852,2]
[370101208,1751881840738,-460.0,0.00016852,2]
[370101209,1751881840750,-460.0,0.00016852,2]
[370101210,1751881840761,-460.0,0.00016852,2]
[370101211,1751881840772,-460.0,0.00016852,2]
[370101212,1751881840783,-460.0,0.00016852,2]
[370101213,1751881840794,-460.0,0.00016852,2]
[370101214,1751881840804,-460.0,0.00016852,2]
[370101215,1751881840815,-460.0,0.00016852,2]
[370101216,1751881840827,-511.03,0.00016853,2]
[370101217,1751881840838,-460.0,0.00016853,2]
[370101218,1751881840849,-460.0,0.00016853,2]
[370101219,1751881841114,-460.0,0.00016853,2]
[370101220,1751881841126,-460.0,0.00016853,2]
[370101221,1751881841136,-460.0,0.00016853,2]
[370101222,1751881841146,-460.0,0.00016853,2]
[370101223,1751881841156,-460.0,0.00016853,2]
[370101224,1751881841165,-460.0,0.00016853,2]
[370101225,1751881841174,-460.0,0.00016853,2]
[370101226,1751881841184,-460.0,0.00016853,2]
[370101227,1751881841194,-544.65,0.00016853,2]
[370101228,1751881841203,-460.0,0.00016853,2]
[370101229,1751881841213,-460.0,0.00016853,2]
[370101230,1751881841222,-460.0,0.00016853,2]
[370101231,1751881841232,-460.0,0.00016853,2]
[370101232,1751881841242,-268.57821066,0.00016854,2]
[370101233,1751881841251,-460.0,0.00016854,2]
[370101234,1751881841261,-460.0,0.00016854,2]
[370101235,1751881841271,-460.0,0.00016854,2]
[370101236,1751881841280,-460.0,0.00016854,2]
[370101237,1751881841290,-460.0,0.00016854,2]
[370101238,1751881841299,-460.0,0.00016854,2]
[370101239,1751881841310,-460.0,0.00016854,2]
[370101240,1751881841320,-460.0,0.00016854,2]
[370101241,1751881841330,-460.0,0.00016854,2]
[370101242,1751881841339,-202.58,0.00017125,2]
[370101243,1751881841348,-1324.75,0.00017125,2]
[370101244,1751881841358,-460.0,0.00017125,2]
[370101245,1751881841367,-460.0,0.00017126,2]
[370101246,1751881841377,-460.0,0.00017126,2]
[370101247,1751881841386,-546.46102449,0.00017126,2]
[370101248,1751881841396,-279.16606981,0.00017126,2]
[370101249,1751881841406,-470.48,0.00017126,2]
[370101250,1751881841415,-460.0,0.00017126,2]
[370101251,1751881841424,-460.0,0.00017126,2]
[370101252,1751881841434,-460.0,0.00017126,2]
[370101253,1751881841443,-460.0,0.00017126,2]
[370101254,1751881841452,-460.0,0.00017126,2]
[370101255,1751881841462,-460.0,0.00017126,2]
[370101256,1751881841471,-460.0,0.00017126,2]
[370101257,1751881841480,-460.0,0.00017126,2]
[370101258,1751881841489,-460.0,0.00017126,2]
[370101259,1751881841499,-460.0,0.00017126,2]
[370101260,1751881841508,-460.0,0.00017126,2]
[370101261,1751881841517,-460.0,0.00017126,2]
[370101262,1751881841526,-460.0,0.00017126,2]
[370101263,1751881841536,-460.0,0.00017126,2]
[370101264,1751881841545,-460.0,0.00017126,2]
[370101265,1751881841554,-460.0,0.00017126,2]
[370101266,1751881841564,-460.0,0.00017127,2]
[370101267,1751881841573,-460.0,0.00017127,2]
[370101268,1751881841582,-460.0,0.00017127,2]
[370101269,1751881841591,-460.0,0.00017127,2]
[370101270,1751881841600,-460.0,0.00017127,2]
[370101271,1751881841609,-590.0,0.00017127,2]
[370101272,1751881841619,-460.0,0.00017127,2]
[370101273,1751881841628,-460.0,0.00017128,2]
[370101274,1751881841637,-460.0,0.00017128,2]
[370101275,1751881841646,-460.0,0.00017128,2]
[370101276,1751881841656,-460.0,0.00017128,2]
[370101277,1751881841665,-460.0,0.00017128,2]
[370101278,1751881841675,-460.0,0.00017128,2]
[370101279,1751881841684,-500.0,0.00017144,2]
[370101280,1751881841693,-500.0,0.00017252,2]
[370101281,1751881841702,-500.0,0.00017252,2]
[370101282,1751881841711,-500.0,0.00017252,2]
[370101283,1751881841720,-500.0,0.00017252,2]
[370101284,1751881841730,-1324.75,0.00017399,2]
[370101285,1751881841739,-460.0,0.00017399,2]
[370101286,1751881841752,-460.0,0.000174,2]
[370101287,1751881841761,-421.0,0.000174,2]
[370101288,1751881841771,-460.0,0.000174,2]
[370101289,1751881841780,-460.0,0.000174,2]
[370101290,1751881841790,-460.0,0.000174,2]
[370101291,1751881841799,-460.0,0.000174,2]
[370101292,1751881841809,-460.0,0.000174,2]
[370101293,1751881841818,-460.0,0.000174,2]
[370101294,1751881841828,-460.0,0.000174,2]
[370101295,1751881841837,-460.0,0.000174,2]
[370101296,1751881841846,-460.0,0.000174,2]
[370101297,1751881841856,-460.0,0.000174,2]
[370101298,1751881841865,-438.57,0.000174,2]
[370101299,1751881841874,-460.0,0.00017401,2]
[370101300,1751881841884,-350.6238215,0.00017401,2]
[370101301,1751881841893,-460.0,0.00017402,2]
[370101302,1751881841902,-460.0,0.00017402,2]
[370101303,1751881841911,-530.79,0.00017402,2]
[370101304,1751881841920,-272.73,0.00017402,2]
[370101305,1751881841930,-460.0,0.00017403,2]
[370101306,1751881841939,-460.0,0.00017403,2]
[370101307,1751881841948,-1324.75,0.00017673,2]
[370101308,1751881841957,-460.0,0.00017673,2]
[370101309,1751881841967,-460.0,0.00017674,2]
[370101310,1751881841976,-309.01154364,0.00017674,2]
[370101311,1751881841986,-411.50579363,0.00017674,2]
[370101312,1751881841995,-460.0,0.00017674,2]
[370101313,1751881842004,-460.0,0.00017674,2]
[370101314,1751881842014,-460.0,0.00017674,2]
[370101315,1751881842023,-432.51573702,0.00017674,2]
[370101316,1751881842033,-460.0,0.00017674,2]
[370101317,1751881842042,-460.0,0.00017674,2]
[370101318,1751881842051,-460.0,0.00017674,2]
[370101319,1751881842060,-223.42,0.00017675,2]
[370101320,1751881842069,-460.0,0.00017676,2]
[370101321,1751881842079,-460.0,0.00017677,2]
[370101322,1751881842088,-460.0,0.00017677,2]
[370101323,1751881842097,-1000.0,0.00017799,2]
[370101324,1751881842107,-1000.0,0.00017799,2]
[370101325,1751881842117,-1000.0,0.00017799,2]
[370101326,1751881842126,-201.85100001,0.000179,2]
[370101327,1751881842135,-503.14,0.00017922,3]
[370101328,1751881842145,-251.57,0.00017922,3]
[370101329,1751881842155,-754.71,0.00017922,3]
[370101330,1751881842164,-207.4,0.00017932,2]
[370101331,1751881842173,-500.0,0.00017932,2]
[370101332,1751881842183,-1500.0,0.00017932,2]
[370101333,1751881842193,-500.0,0.00017932,2]
[370101334,1751881842202,-1500.0,0.00017932,2]
[370101335,1751881842212,-500.0,0.00017932,2]
[370101336,1751881842221,-1500.0,0.00017932,2]
[370101337,1751881842231,-500.0,0.00017932,2]
[370101338,1751881842240,-1500.0,0.00017932,2]
[370101339,1751881842249,-500.0,0.00017932,2]
[370101340,1751881842259,-1500.0,0.00017932,2]
[370101341,1751881842268,-1500.0,0.00017932,2]
[370101342,1751881842278,-500.0,0.00017932,2]
[370101343,1751881842286,-500.0,0.00017932,2]
[370101344,1751881842296,-500.0,0.00017932,2]
[370101345,1751881842307,-151.0,0.00017932,2]
[370101346,1751881842317,-500.0,0.00017932,2]
[370101347,1751881842327,-500.0,0.00017932,2]
[370101348,1751881842336,-1500.0,0.00017932,2]
[370101349,1751881842345,-500.0,0.00017932,2]
[370101350,1751881842355,-1500.0,0.00017932,2]
[370101351,1751881842365,-151.0,0.00017932,2]
[370101352,1751881842374,-1500.0,0.00017932,2]
[370101353,1751881842383,-1500.0,0.00017932,2]
[370101354,1751881842393,-1500.0,0.00017932,2]
[370101355,1751881842402,-151.0,0.00017932,2]
[370101356,1751881842411,-151.0,0.00017932,2]
[370101357,1751881842420,-151.0,0.00017932,2]
[370101358,1751881842430,-151.0,0.00017932,2]
[370101359,1751881842439,-151.0,0.00017932,2]
[370101360,1751881842448,-151.0,0.00017932,2]
[370101361,1751881842457,-151.0,0.00017932,2]
[370101362,1751881842467,-151.0,0.00017932,2]
[370101363,1751881842477,-151.0,0.00017932,2]
[370101364,1751881842486,-151.0,0.00017932,2]
[370101365,1751881842495,-227.69074993,0.00017932,2]
[370101366,1751881842504,-1324.75,0.00017947,2]
[370101367,1751881842513,-536.54,0.00017947,2]
[370101368,1751881842523,-460.0,0.00017948,2]
[370101369,1751881842532,-460.0,0.00017948,2]
[370101370,1751881842541,-460.0,0.00017948,2]
[370101371,1751881842550,-460.0,0.00017948,2]
[370101372,1751881842559,-460.0,0.00017948,2]
[370101373,1751881842569,-460.0,0.00017948,2]